[Event "Early-Titled-Tuesday-Blitz-April-16-2024"]
[Site "Chess.com"]
[Date "2024.04.16"]
[Round "6"]
[White "DenLaz"]
[Black "temus_galaktionov"]
[Result "1-0"]
[WhiteElo "3112"]
[BlackElo "2857"]
[TimeControl "180+1"]
[EndTime "9:06:47 PDT"]
[Termination "DenLaz won by resignation"]

1. d4 {[%clk 0:03:00.9]} 1... c6 {[%clk 0:03:00.9]} 2. c4 {[%clk 0:03:00.7]}
2... g6 {[%clk 0:03:01.8]} 3. Nf3 {[%clk 0:03:00.7]} 3... d6 {[%clk 0:03:02.4]}
4. g3 {[%clk 0:03:01.2]} 4... Bg7 {[%clk 0:03:02.9]} 5. Bg2 {[%clk 0:03:01.9]}
5... Nd7 {[%clk 0:03:03.5]} 6. O-O {[%clk 0:03:02.2]} 6... Ngf6 {[%clk
0:03:04.1]} 7. Nc3 {[%clk 0:03:02.7]} 7... O-O {[%clk 0:03:04.7]} 8. e4 {[%clk
0:03:03.4]} 8... e5 {[%clk 0:03:05.2]} 9. h3 {[%clk 0:03:04]} 9... a5 {[%clk
0:03:04.9]} 10. Be3 {[%clk 0:03:03.9]} 10... exd4 {[%clk 0:03:04.2]} 11. Nxd4
{[%clk 0:03:03.9]} 11... Nc5 {[%clk 0:03:03.6]} 12. Qc2 {[%clk 0:03:04.3]} 12...
a4 {[%clk 0:03:03.8]} 13. Rad1 {[%clk 0:03:04.2]} 13... Qa5 {[%clk 0:03:03.7]}
14. Bf4 {[%clk 0:03:04.6]} 14... Rd8 {[%clk 0:03:02.8]} 15. Nf3 {[%clk
0:03:05.2]} 15... Ne8 {[%clk 0:03:02.5]} 16. Bg5 {[%clk 0:03:03.4]} 16... Rd7
{[%clk 0:03:02.1]} 17. Bd2 {[%clk 0:02:54.5]} 17... Qa6 {[%clk 0:03:02.2]} 18.
b3 {[%clk 0:02:48.2]} 18... axb3 {[%clk 0:03:00.9]} 19. axb3 {[%clk 0:02:49.1]}
19... Qb6 {[%clk 0:03:00.6]} 20. Rb1 {[%clk 0:02:48.9]} 20... Re7 {[%clk
0:02:59.3]} 21. b4 {[%clk 0:02:44.8]} 21... Ne6 {[%clk 0:02:55.4]} 22. Be3
{[%clk 0:02:41.5]} 22... Nd4 {[%clk 0:02:55.4]} 23. Bxd4 {[%clk 0:01:53.8]}
23... Bxd4 {[%clk 0:02:56.3]} 24. Na4 {[%clk 0:01:54.3]} 24... Qa7 {[%clk
0:02:55.2]} 25. Nxd4 {[%clk 0:01:50.5]} 25... Qxd4 {[%clk 0:02:55.2]} 26. c5
{[%clk 0:01:47.2]} 26... dxc5 {[%clk 0:02:52.9]} 27. Nb6 {[%clk 0:01:47.3]}
27... Rb8 {[%clk 0:02:52.5]} 28. bxc5 {[%clk 0:01:46.5]} 28... Be6 {[%clk
0:02:42.7]} 29. Rfd1 {[%clk 0:01:46.8]} 29... Qg7 {[%clk 0:02:36.7]} 30. Qd2
{[%clk 0:01:44.2]} 30... f5 {[%clk 0:02:32]} 31. Re1 {[%clk 0:01:39.1]} 31...
fxe4 {[%clk 0:02:31]} 32. Rxe4 {[%clk 0:01:38]} 32... Nf6 {[%clk 0:02:28.1]} 33.
Re3 {[%clk 0:01:34.4]} 33... Bf5 {[%clk 0:02:28.2]} 34. Rbe1 {[%clk 0:01:33.4]}
34... Rxe3 {[%clk 0:02:22.2]} 35. Rxe3 {[%clk 0:01:33.1]} 35... Qc7 {[%clk
0:02:16.2]} 36. Nc4 {[%clk 0:01:29.8]} 36... Rd8 {[%clk 0:02:07.3]} 37. Nd6
{[%clk 0:01:29.9]} 37... b6 {[%clk 0:01:58.4]} 38. Qb2 {[%clk 0:01:27.9]} 38...
bxc5 {[%clk 0:01:53.7]} 39. Qxf6 {[%clk 0:01:24.9]} 39... Rf8 {[%clk 0:01:35.9]}
40. Qe5 {[%clk 0:01:24.7]} 40... Bb1 {[%clk 0:01:27.6]} 41. Qxc5 {[%clk
0:01:22.7]} 41... Qd7 {[%clk 0:01:19]} 42. Qxc6 {[%clk 0:01:19.9]} 42... Qxc6
{[%clk 0:01:17.2]} 43. Bxc6 {[%clk 0:01:19.8]} 43... Rf6 {[%clk 0:01:18.1]} 44.
Bd5+ {[%clk 0:01:20.1]} 44... Kf8 {[%clk 0:01:17.4]} 45. Re8+ {[%clk 0:01:13.2]}
45... Kg7 {[%clk 0:01:15.9]} 46. Rg8+ {[%clk 0:01:13.4]} 46... Kh6 {[%clk
0:01:15.1]} 47. Nf7+ {[%clk 0:01:14.1]} 47... Kh5 {[%clk 0:01:13.4]} 48. Rg7
{[%clk 0:01:14.1]} 48... h6 {[%clk 0:01:07.9]} 49. Kg2 {[%clk 0:01:04.4]} 1-0

[Event "Early-Titled-Tuesday-Blitz-April-16-2024"]
[Site "Chess.com"]
[Date "2024.04.16"]
[Round "6"]
[White "Massakru"]
[Black "yuriydovzik"]
[Result "1-0"]
[WhiteElo "2358"]
[BlackElo "2139"]
[TimeControl "180+1"]
[EndTime "9:06:52 PDT"]
[Termination "Massakru won on time"]

1. e4 {[%clk 0:03:00.9]} 1... c6 {[%clk 0:02:59.4]} 2. d4 {[%clk 0:03:01]} 2...
Na6 {[%clk 0:02:59.4]} 3. c4 {[%clk 0:02:56.7]} 3... e5 {[%clk 0:02:54.6]} 4. d5
{[%clk 0:02:53.6]} 4... Nf6 {[%clk 0:02:48.9]} 5. Nc3 {[%clk 0:02:52.5]} 5...
Nc5 {[%clk 0:02:46.3]} 6. f3 {[%clk 0:02:48.3]} 6... a5 {[%clk 0:02:43.1]} 7.
Bg5 {[%clk 0:02:46.5]} 7... h6 {[%clk 0:02:36.4]} 8. Bh4 {[%clk 0:02:44.8]} 8...
g5 {[%clk 0:02:29.6]} 9. Bg3 {[%clk 0:02:44.5]} 9... d6 {[%clk 0:02:28.2]} 10.
h4 {[%clk 0:02:40.7]} 10... Nh5 {[%clk 0:02:20.3]} 11. Bf2 {[%clk 0:02:38.7]}
11... gxh4 {[%clk 0:01:33.2]} 12. Rxh4 {[%clk 0:02:28.8]} 12... Nf4 {[%clk
0:01:25.3]} 13. g3 {[%clk 0:02:22.2]} 13... Ng6 {[%clk 0:01:24.5]} 14. Rh1
{[%clk 0:02:18.6]} 14... cxd5 {[%clk 0:01:17.2]} 15. Nxd5 {[%clk 0:02:18.4]}
15... Be6 {[%clk 0:01:08.7]} 16. Bh3 {[%clk 0:01:58.1]} 16... Bg7 {[%clk
0:01:03.1]} 17. Bxc5 {[%clk 0:01:54.7]} 17... dxc5 {[%clk 0:00:59.4]} 18. Qa4+
{[%clk 0:01:52.5]} 18... Kf8 {[%clk 0:00:54.1]} 19. O-O-O {[%clk 0:01:49]} 19...
Bxd5 {[%clk 0:00:28.1]} 20. Rxd5 {[%clk 0:01:47.8]} 20... Qg5+ {[%clk
0:00:27.7]} 21. Kb1 {[%clk 0:01:36]} 21... Qxg3 {[%clk 0:00:26.9]} 22. Qd1
{[%clk 0:01:13.5]} 22... Kg8 {[%clk 0:00:20.3]} 23. Bf5 {[%clk 0:01:09.6]} 23...
Kh7 {[%clk 0:00:12.3]} 24. Nh3 {[%clk 0:01:02.1]} 1-0

[Event "Early-Titled-Tuesday-Blitz-April-16-2024"]
[Site "Chess.com"]
[Date "2024.04.16"]
[Round "6"]
[White "ContrVersia"]
[Black "temiksmozg"]
[Result "1-0"]
[WhiteElo "2901"]
[BlackElo "2669"]
[TimeControl "180+1"]
[EndTime "9:06:57 PDT"]
[Termination "ContrVersia won by resignation"]

1. Nf3 {[%clk 0:03:00.9]} 1... d5 {[%clk 0:02:59.1]} 2. c4 {[%clk 0:03:01.2]}
2... c6 {[%clk 0:02:59]} 3. g3 {[%clk 0:03:01]} 3... dxc4 {[%clk 0:02:59.2]} 4.
Bg2 {[%clk 0:03:01.1]} 4... b5 {[%clk 0:02:59.5]} 5. O-O {[%clk 0:03:00.8]} 5...
Bb7 {[%clk 0:02:59.5]} 6. d3 {[%clk 0:03:00.3]} 6... cxd3 {[%clk 0:02:52.9]} 7.
Ne5 {[%clk 0:03:00.2]} 7... Nf6 {[%clk 0:02:45.9]} 8. a4 {[%clk 0:02:59.7]} 8...
a6 {[%clk 0:02:45.2]} 9. axb5 {[%clk 0:01:56.9]} 9... axb5 {[%clk 0:02:46.1]}
10. Rxa8 {[%clk 0:01:57]} 10... Bxa8 {[%clk 0:02:47]} 11. Nc3 {[%clk 0:01:57.5]}
11... e6 {[%clk 0:01:56.2]} 12. Qxd3 {[%clk 0:01:53.2]} 12... Qxd3 {[%clk
0:01:51.8]} 13. Nxd3 {[%clk 0:01:54.1]} 13... b4 {[%clk 0:01:02.6]} 14. Na4
{[%clk 0:01:46]} 14... Nbd7 {[%clk 0:00:58]} 15. Bd2 {[%clk 0:01:45.6]} 15...
Nd5 {[%clk 0:00:54.2]} 16. Ra1 {[%clk 0:01:38.4]} 16... Bb7 {[%clk 0:00:28.6]}
17. e4 {[%clk 0:01:37.9]} 17... N5f6 {[%clk 0:00:24.8]} 18. Be3 {[%clk 0:01:34]}
18... c5 {[%clk 0:00:06.4]} 19. Naxc5 {[%clk 0:01:32.8]} 19... Nxc5 {[%clk
0:00:06.3]} 20. Nxc5 {[%clk 0:01:33.3]} 20... Bxc5 {[%clk 0:00:05.3]} 21. Bxc5
{[%clk 0:01:34.2]} 21... Kd7 {[%clk 0:00:02.8]} 22. Bxb4 {[%clk 0:01:20.7]}
22... Bxe4 {[%clk 0:00:02.2]} 23. Ra7+ {[%clk 0:01:20.7]} 23... Kc6 {[%clk
0:00:02.3]} 24. Rxf7 {[%clk 0:01:20.6]} 24... Bxg2 {[%clk 0:00:02]} 25. Kxg2
{[%clk 0:01:21.5]} 25... Nd5 {[%clk 0:00:01.7]} 26. Bc3 {[%clk 0:01:18.9]} 26...
Rg8 {[%clk 0:00:02.2]} 27. Bxg7 {[%clk 0:01:18.3]} 27... Kd6 {[%clk 0:00:01.2]}
28. f4 {[%clk 0:01:16.8]} 28... h5 {[%clk 0:00:01.5]} 29. Be5+ {[%clk
0:01:16.5]} 29... Kc5 {[%clk 0:00:02]} 30. Kf3 {[%clk 0:01:16.9]} 30... Rc8
{[%clk 0:00:01.4]} 31. Rh7 {[%clk 0:01:14.9]} 31... Ra8 {[%clk 0:00:01.9]} 32.
Rxh5 {[%clk 0:01:14.8]} 32... Ra1 {[%clk 0:00:02.8]} 33. b4+ {[%clk 0:01:13.9]}
1-0

[Event "Early-Titled-Tuesday-Blitz-April-16-2024"]
[Site "Chess.com"]
[Date "2024.04.16"]
[Round "6"]
[White "jaskol95"]
[Black "Leo_C"]
[Result "0-1"]
[WhiteElo "2540"]
[BlackElo "2664"]
[TimeControl "180+1"]
[EndTime "9:06:59 PDT"]
[Termination "Leo_C won by checkmate"]

1. e4 {[%clk 0:03:00.9]} 1... c5 {[%clk 0:02:59.8]} 2. Nf3 {[%clk 0:03:00]} 2...
d6 {[%clk 0:03:00.3]} 3. Bb5+ {[%clk 0:02:59.3]} 3... Bd7 {[%clk 0:03:00]} 4. a4
{[%clk 0:02:58.7]} 4... Nf6 {[%clk 0:02:56.8]} 5. Nc3 {[%clk 0:02:58.4]} 5... e6
{[%clk 0:02:49.2]} 6. d3 {[%clk 0:02:58.4]} 6... Be7 {[%clk 0:02:48.9]} 7. h3
{[%clk 0:02:56.6]} 7... O-O {[%clk 0:02:48.8]} 8. Bg5 {[%clk 0:02:56.3]} 8... h6
{[%clk 0:02:46.5]} 9. Be3 {[%clk 0:02:50.3]} 9... Nc6 {[%clk 0:02:36.3]} 10. Qd2
{[%clk 0:02:49.5]} 10... Qc7 {[%clk 0:02:26.8]} 11. O-O {[%clk 0:02:48.6]} 11...
Rad8 {[%clk 0:02:23.8]} 12. Bc4 {[%clk 0:02:39.9]} 12... Bc8 {[%clk 0:02:21.1]}
13. Ba2 {[%clk 0:02:38.2]} 13... d5 {[%clk 0:02:19.3]} 14. exd5 {[%clk
0:02:38.5]} 14... exd5 {[%clk 0:02:20.2]} 15. d4 {[%clk 0:02:37.1]} 15... Ne4
{[%clk 0:02:19.9]} 16. Qe2 {[%clk 0:02:33.1]} 16... Bf6 {[%clk 0:02:16.6]} 17.
Nxd5 {[%clk 0:02:27.8]} 17... Qd7 {[%clk 0:01:48.3]} 18. Nxf6+ {[%clk
0:02:12.4]} 18... Nxf6 {[%clk 0:01:49.2]} 19. dxc5 {[%clk 0:02:12.6]} 19... Qf5
{[%clk 0:01:48.6]} 20. Rad1 {[%clk 0:02:05.9]} 20... Rde8 {[%clk 0:01:43.7]} 21.
Nd4 {[%clk 0:01:59.4]} 21... Nxd4 {[%clk 0:01:37.9]} 22. Rxd4 {[%clk 0:02:00]}
22... Qxc5 {[%clk 0:01:38]} 23. Qc4 {[%clk 0:01:16.9]} 23... Qh5 {[%clk
0:01:18.6]} 24. Rh4 {[%clk 0:01:10.5]} 24... Qg6 {[%clk 0:01:18.6]} 25. Bc5
{[%clk 0:00:42.5]} 25... Be6 {[%clk 0:01:16]} 26. Qb5 {[%clk 0:00:34.8]} 26...
Bxa2 {[%clk 0:01:12.5]} 27. Bxf8 {[%clk 0:00:34.4]} 27... Bd5 {[%clk 0:01:12.2]}
28. Rg4 {[%clk 0:00:12.8]} 28... Nxg4 {[%clk 0:01:12.2]} 29. hxg4 {[%clk
0:00:07.4]} 29... Bc6 {[%clk 0:01:09.6]} 30. Qc5 {[%clk 0:00:05.5]} 30... Rxf8
{[%clk 0:01:09.3]} 31. Qxa7 {[%clk 0:00:06]} 31... Qxg4 {[%clk 0:01:09.1]} 32.
b3 {[%clk 0:00:05]} 32... Qxg2# {[%clk 0:01:08.7]} 0-1

[Event "Early-Titled-Tuesday-Blitz-April-16-2024"]
[Site "Chess.com"]
[Date "2024.04.16"]
[Round "6"]
[White "Sanan_Sjugirov"]
[Black "Smoking_Crow"]
[Result "1-0"]
[WhiteElo "3047"]
[BlackElo "2679"]
[TimeControl "180+1"]
[EndTime "9:07:03 PDT"]
[Termination "Sanan_Sjugirov won by resignation"]

1. e4 {[%clk 0:03:00.9]} 1... e5 {[%clk 0:02:58.8]} 2. Nf3 {[%clk 0:03:01.3]}
2... Nc6 {[%clk 0:02:59.4]} 3. Bc4 {[%clk 0:03:01.9]} 3... Nf6 {[%clk
0:03:00.1]} 4. d3 {[%clk 0:03:02.4]} 4... Bc5 {[%clk 0:03:00]} 5. O-O {[%clk
0:03:02.4]} 5... d6 {[%clk 0:03:00.2]} 6. c3 {[%clk 0:03:02.9]} 6... O-O {[%clk
0:02:59]} 7. Nbd2 {[%clk 0:03:03.1]} 7... Bb6 {[%clk 0:02:59.2]} 8. a4 {[%clk
0:02:58.7]} 8... a6 {[%clk 0:02:57.3]} 9. h3 {[%clk 0:02:58.6]} 9... Ne7 {[%clk
0:02:57.4]} 10. Re1 {[%clk 0:02:56.9]} 10... Ng6 {[%clk 0:02:57.2]} 11. Bb3
{[%clk 0:02:49.6]} 11... h6 {[%clk 0:02:56.2]} 12. d4 {[%clk 0:02:49.2]} 12...
Re8 {[%clk 0:02:53.3]} 13. Bc2 {[%clk 0:02:49.3]} 13... c6 {[%clk 0:02:52.2]}
14. Nf1 {[%clk 0:02:49.1]} 14... Bc7 {[%clk 0:02:51.9]} 15. Ng3 {[%clk
0:02:49.1]} 15... Bd7 {[%clk 0:02:51.9]} 16. Be3 {[%clk 0:02:49]} 16... b5
{[%clk 0:02:51.8]} 17. Qd2 {[%clk 0:02:48.8]} 17... a5 {[%clk 0:02:50.9]} 18.
Bxh6 {[%clk 0:02:39.5]} 18... gxh6 {[%clk 0:02:43.7]} 19. Qxh6 {[%clk
0:02:40.4]} 19... Qe7 {[%clk 0:02:38.7]} 20. Nf5 {[%clk 0:02:26]} 20... Qf8
{[%clk 0:02:19.7]} 21. Qg5 {[%clk 0:02:26.4]} 21... Nh7 {[%clk 0:02:19.7]} 22.
Qd2 {[%clk 0:02:20.6]} 22... Kh8 {[%clk 0:02:14.8]} 23. g3 {[%clk 0:02:15.9]}
23... f6 {[%clk 0:02:08]} 24. Kg2 {[%clk 0:02:15.2]} 24... Rab8 {[%clk
0:01:52.4]} 25. axb5 {[%clk 0:02:15.2]} 25... cxb5 {[%clk 0:01:50.9]} 26. Bb3
{[%clk 0:02:15.5]} 26... Ne7 {[%clk 0:01:42.4]} 27. N3h4 {[%clk 0:02:14.6]}
27... Nxf5 {[%clk 0:01:41.6]} 28. Ng6+ {[%clk 0:02:14.8]} 28... Kg7 {[%clk
0:01:40.5]} 29. Nxf8 {[%clk 0:02:15.7]} 29... Rxf8 {[%clk 0:01:38.5]} 30. exf5
{[%clk 0:02:15.8]} 30... Bc6+ {[%clk 0:01:39]} 31. Kh2 {[%clk 0:02:14.9]} 31...
Ng5 {[%clk 0:01:38.4]} 32. Bd1 {[%clk 0:02:09.4]} 32... Rh8 {[%clk 0:01:36.2]}
33. h4 {[%clk 0:02:08.5]} 33... Rbg8 {[%clk 0:01:35.8]} 34. d5 {[%clk
0:02:06.5]} 34... Bd7 {[%clk 0:01:35.2]} 35. Kg2 {[%clk 0:02:05.1]} 35... Nf7
{[%clk 0:01:35]} 36. c4 {[%clk 0:01:55.9]} 36... b4 {[%clk 0:01:31.6]} 37. c5
{[%clk 0:01:56.3]} 37... Bxf5 {[%clk 0:01:28]} 38. Bc2 {[%clk 0:01:53.6]} 38...
Bd7 {[%clk 0:01:26.8]} 39. c6 {[%clk 0:01:52.5]} 39... Bc8 {[%clk 0:01:25.3]}
40. Qe2 {[%clk 0:01:43.2]} 40... f5 {[%clk 0:01:23.7]} 41. Bd3 {[%clk
0:01:40.1]} 41... Kf6 {[%clk 0:01:23.1]} 42. Ba6 {[%clk 0:01:39.3]} 42... e4
{[%clk 0:01:21.8]} 43. Bxc8 {[%clk 0:01:39.3]} 43... Rxc8 {[%clk 0:01:22.2]} 44.
f3 {[%clk 0:01:37.2]} 44... Ne5 {[%clk 0:01:15.6]} 45. fxe4 {[%clk 0:01:37.2]}
45... f4 {[%clk 0:01:16]} 46. Rf1 {[%clk 0:01:35]} 46... f3+ {[%clk 0:01:16.5]}
47. Rxf3+ {[%clk 0:01:35.3]} 47... Nxf3 {[%clk 0:01:17.2]} 48. Qxf3+ {[%clk
0:01:36.2]} 48... Ke5 {[%clk 0:01:17.7]} 49. Qf4+ {[%clk 0:01:34.2]} 49... Kd4
{[%clk 0:01:18.2]} 50. Rd1+ {[%clk 0:01:30.6]} 50... Kc5 {[%clk 0:01:18.4]} 51.
Qe3+ {[%clk 0:01:30.2]} 51... Kb5 {[%clk 0:01:18.5]} 52. Qd3+ {[%clk 0:01:30.6]}
52... Kb6 {[%clk 0:01:18.3]} 53. Qd4+ {[%clk 0:01:31.1]} 53... Kb5 {[%clk
0:01:18.7]} 54. Qd3+ {[%clk 0:01:29.1]} 54... Kb6 {[%clk 0:01:19.1]} 55. e5
{[%clk 0:01:30]} 55... Rce8 {[%clk 0:01:16.8]} 56. e6 {[%clk 0:01:24.8]} 56...
Ref8 {[%clk 0:01:11.3]} 57. Rf1 {[%clk 0:01:23.9]} 57... Rfg8 {[%clk 0:01:08.8]}
58. e7 {[%clk 0:01:22.9]} 58... Re8 {[%clk 0:01:08]} 59. Qd4+ {[%clk 0:01:22.9]}
59... Ka6 {[%clk 0:01:07.9]} 60. Qxh8 {[%clk 0:01:21.5]} 1-0

[Event "Early-Titled-Tuesday-Blitz-April-16-2024"]
[Site "Chess.com"]
[Date "2024.04.16"]
[Round "6"]
[White "Bulatova_Kamaliya"]
[Black "Burgsvik"]
[Result "0-1"]
[WhiteElo "2426"]
[BlackElo "2269"]
[TimeControl "180+1"]
[EndTime "9:07:05 PDT"]
[Termination "Burgsvik won on time"]

1. e4 {[%clk 0:03:00.9]} 1... e6 {[%clk 0:02:59.7]} 2. d4 {[%clk 0:02:58.2]}
2... d5 {[%clk 0:03:00.6]} 3. exd5 {[%clk 0:02:53.8]} 3... exd5 {[%clk
0:03:00.2]} 4. Bd3 {[%clk 0:02:52.7]} 4... Nc6 {[%clk 0:03:00]} 5. c3 {[%clk
0:02:52.1]} 5... Bd6 {[%clk 0:02:59.6]} 6. h3 {[%clk 0:02:50.1]} 6... Nge7
{[%clk 0:02:59.5]} 7. Qf3 {[%clk 0:02:45]} 7... Be6 {[%clk 0:02:57.4]} 8. Be3
{[%clk 0:02:40.9]} 8... Qd7 {[%clk 0:02:57.3]} 9. Ne2 {[%clk 0:02:26.5]} 9...
O-O-O {[%clk 0:02:55.5]} 10. Nd2 {[%clk 0:02:17.2]} 10... f6 {[%clk 0:02:54.5]}
11. Nf4 {[%clk 0:02:12.2]} 11... Kb8 {[%clk 0:02:51.5]} 12. b4 {[%clk
0:02:07.1]} 12... Bxf4 {[%clk 0:02:48.1]} 13. Qxf4 {[%clk 0:02:03.9]} 13... Rdf8
{[%clk 0:02:40.4]} 14. Nb3 {[%clk 0:01:52.7]} 14... g5 {[%clk 0:02:21.4]} 15.
Qf3 {[%clk 0:01:52.5]} 15... g4 {[%clk 0:02:17.1]} 16. Qe2 {[%clk 0:01:50.9]}
16... gxh3 {[%clk 0:02:16.2]} 17. gxh3 {[%clk 0:01:49.6]} 17... Bxh3 {[%clk
0:02:13.1]} 18. Nc5 {[%clk 0:01:44]} 18... Qg4 {[%clk 0:02:10.8]} 19. f3 {[%clk
0:01:22.2]} 19... Qc8 {[%clk 0:02:05.9]} 20. Ba6 {[%clk 0:00:39.4]} 20... Nd8
{[%clk 0:01:57.4]} 21. Bxb7 {[%clk 0:00:29.1]} 21... Nxb7 {[%clk 0:01:52.7]} 22.
Na6+ {[%clk 0:00:24.6]} 22... Ka8 {[%clk 0:01:52.3]} 23. Bf4 {[%clk 0:00:24.3]}
23... Re8 {[%clk 0:01:41.2]} 24. O-O-O {[%clk 0:00:19.7]} 24... Nd6 {[%clk
0:01:35.5]} 25. Nxc7+ {[%clk 0:00:09.1]} 25... Qxc7 {[%clk 0:01:33.7]} 26. Rxh3
{[%clk 0:00:08.8]} 26... Nef5 {[%clk 0:01:33.6]} 27. Qd3 {[%clk 0:00:07.7]}
27... Qd7 {[%clk 0:01:31.1]} 28. Rh5 {[%clk 0:00:05.8]} 28... Rhg8 {[%clk
0:01:24.3]} 29. Bxd6 {[%clk 0:00:05.1]} 29... Nxd6 {[%clk 0:01:22.9]} 30. Rxd5
{[%clk 0:00:05.2]} 30... Qc6 {[%clk 0:01:22.5]} 31. Rc5 {[%clk 0:00:04.9]} 31...
Qb7 {[%clk 0:01:21.6]} 32. Rf1 {[%clk 0:00:01.3]} 32... Rc8 {[%clk 0:01:20.5]}
33. Rh1 {[%clk 0:00:01.1]} 33... Rxc5 {[%clk 0:01:19.8]} 34. dxc5 {[%clk
0:00:02]} 34... Nb5 {[%clk 0:01:19.4]} 35. Rxh7 {[%clk 0:00:01.7]} 35... Qc6
{[%clk 0:01:18.1]} 0-1

[Event "Early-Titled-Tuesday-Blitz-April-16-2024"]
[Site "Chess.com"]
[Date "2024.04.16"]
[Round "6"]
[White "SaiAgni_98"]
[Black "le-castor-faineant"]
[Result "1-0"]
[WhiteElo "2484"]
[BlackElo "2331"]
[TimeControl "180+1"]
[EndTime "9:07:11 PDT"]
[Termination "SaiAgni_98 won by resignation"]

1. e4 {[%clk 0:03:00.6]} 1... e5 {[%clk 0:02:59.9]} 2. Nf3 {[%clk 0:03:00.2]}
2... Nf6 {[%clk 0:03:00]} 3. d4 {[%clk 0:02:54.4]} 3... Nxe4 {[%clk 0:02:59.1]}
4. dxe5 {[%clk 0:02:51.1]} 4... d5 {[%clk 0:02:58.5]} 5. Nbd2 {[%clk 0:02:48.7]}
5... Nxd2 {[%clk 0:02:53.8]} 6. Bxd2 {[%clk 0:02:48.5]} 6... Bc5 {[%clk
0:02:53.9]} 7. Bd3 {[%clk 0:02:47.4]} 7... O-O {[%clk 0:02:51.9]} 8. O-O {[%clk
0:02:46.6]} 8... Nc6 {[%clk 0:02:50.6]} 9. h3 {[%clk 0:02:39.9]} 9... Re8 {[%clk
0:02:50.1]} 10. Re1 {[%clk 0:02:38]} 10... a5 {[%clk 0:02:29.2]} 11. c3 {[%clk
0:02:31.6]} 11... h6 {[%clk 0:02:27.2]} 12. Bf4 {[%clk 0:02:15.3]} 12... d4
{[%clk 0:02:25.5]} 13. Qd2 {[%clk 0:01:58.5]} 13... dxc3 {[%clk 0:02:17.2]} 14.
bxc3 {[%clk 0:01:59.4]} 14... Bf8 {[%clk 0:02:05.4]} 15. Rad1 {[%clk 0:01:58.8]}
15... Be6 {[%clk 0:02:03.1]} 16. Qe2 {[%clk 0:01:54.9]} 16... Qe7 {[%clk
0:01:59.7]} 17. Qe4 {[%clk 0:01:51.6]} 17... g6 {[%clk 0:01:55.7]} 18. Qe3
{[%clk 0:01:48.4]} 18... Kh7 {[%clk 0:01:50.4]} 19. h4 {[%clk 0:01:39.9]} 19...
Bg4 {[%clk 0:01:49]} 20. Rb1 {[%clk 0:01:29.2]} 20... Bg7 {[%clk 0:00:33.6]} 21.
Rxb7 {[%clk 0:01:16.5]} 21... Bxf3 {[%clk 0:00:33]} 22. Qxf3 {[%clk 0:01:16.8]}
22... Nxe5 {[%clk 0:00:33.3]} 23. Bxe5 {[%clk 0:01:14.3]} 23... Bxe5 {[%clk
0:00:33.1]} 24. Rxe5 {[%clk 0:00:46.2]} 24... Qxe5 {[%clk 0:00:32.9]} 25. Qxf7+
{[%clk 0:00:46.5]} 25... Qg7 {[%clk 0:00:31.8]} 26. Bxg6+ {[%clk 0:00:44.5]}
26... Kh8 {[%clk 0:00:31.7]} 27. Qxg7+ {[%clk 0:00:44.2]} 27... Kxg7 {[%clk
0:00:30]} 28. Bxe8 {[%clk 0:00:45.1]} 28... Rxe8 {[%clk 0:00:29.1]} 29. Rxc7+
{[%clk 0:00:45.5]} 1-0

[Event "Early-Titled-Tuesday-Blitz-April-16-2024"]
[Site "Chess.com"]
[Date "2024.04.16"]
[Round "6"]
[White "szefru"]
[Black "ChessSG1"]
[Result "0-1"]
[WhiteElo "2272"]
[BlackElo "2417"]
[TimeControl "180+1"]
[EndTime "9:07:11 PDT"]
[Termination "ChessSG1 won by resignation"]

1. e4 {[%clk 0:03:00.9]} 1... c5 {[%clk 0:02:59.7]} 2. Nf3 {[%clk 0:03:00.5]}
2... g6 {[%clk 0:03:00.2]} 3. Nc3 {[%clk 0:02:54.9]} 3... Bg7 {[%clk 0:02:58.7]}
4. Bc4 {[%clk 0:02:53.8]} 4... Nc6 {[%clk 0:02:56.2]} 5. O-O {[%clk 0:02:52.7]}
5... e6 {[%clk 0:02:53.8]} 6. a4 {[%clk 0:02:51.8]} 6... Nge7 {[%clk 0:02:52.7]}
7. d3 {[%clk 0:02:47.5]} 7... d5 {[%clk 0:02:52.2]} 8. exd5 {[%clk 0:02:40.4]}
8... exd5 {[%clk 0:02:53.1]} 9. Bb5 {[%clk 0:02:39.5]} 9... O-O {[%clk
0:02:51.1]} 10. Bg5 {[%clk 0:02:38.8]} 10... h6 {[%clk 0:02:42.4]} 11. Bh4
{[%clk 0:02:20.9]} 11... g5 {[%clk 0:02:42.3]} 12. Bg3 {[%clk 0:02:21.1]} 12...
Nd4 {[%clk 0:02:42.8]} 13. a5 {[%clk 0:01:57.4]} 13... Bg4 {[%clk 0:02:34.8]}
14. Re1 {[%clk 0:01:54.7]} 14... Ng6 {[%clk 0:02:25]} 15. Ba4 {[%clk 0:01:24]}
15... Nh4 {[%clk 0:02:15.5]} 16. Bxh4 {[%clk 0:01:23.7]} 16... gxh4 {[%clk
0:02:15.8]} 17. h3 {[%clk 0:01:14]} 17... Nxf3+ {[%clk 0:02:14.8]} 18. gxf3
{[%clk 0:01:14.9]} 18... Bxh3 {[%clk 0:02:15.1]} 19. Kh2 {[%clk 0:01:15.6]}
19... Be6 {[%clk 0:02:06.3]} 20. Rg1 {[%clk 0:01:13.7]} 20... Kh8 {[%clk
0:02:05.9]} 21. f4 {[%clk 0:01:12.7]} 21... Qd6 {[%clk 0:02:04.4]} 22. Qf3
{[%clk 0:01:08.5]} 22... Bf6 {[%clk 0:01:41.3]} 23. Ne2 {[%clk 0:01:00.8]} 23...
Rg8 {[%clk 0:01:35.9]} 24. d4 {[%clk 0:00:39.5]} 24... cxd4 {[%clk 0:01:28.9]}
25. c3 {[%clk 0:00:39.5]} 25... dxc3 {[%clk 0:01:03.7]} 26. Bc2 {[%clk
0:00:39.3]} 26... cxb2 {[%clk 0:00:59.5]} 27. Qd3 {[%clk 0:00:18.4]} 27... Rg7
{[%clk 0:00:59.8]} 28. Rxg7 {[%clk 0:00:17.9]} 28... Kxg7 {[%clk 0:00:59.9]} 29.
Qh7+ {[%clk 0:00:17.6]} 29... Kf8 {[%clk 0:01:00.5]} 30. Rg1 {[%clk 0:00:16.8]}
30... Ke7 {[%clk 0:00:58.5]} 31. Kh1 {[%clk 0:00:13]} 31... d4 {[%clk
0:00:56.9]} 32. f5 {[%clk 0:00:11.2]} 32... Bd5+ {[%clk 0:00:56.7]} 0-1